Workbook

Sheet TABLADINAM X CARGO
A3: CARGOS | B3: NETO PAGADO | C3: FUNCIONARIOS
A4: Auxiliar Admin | B4: 2041000 | C4: 3
A5: Coordinador | B5: 3350000 | C5: 2
A6: Gerente | B6: 2980000 | C6: 1
A7: Jefe de Division | B7: 4538000 | C7: 2
A8: (en blanco) | B8: 0
A9: Total general | B9: 12909000 | C9: 8

Sheet Hoja2
A3: Etiquetas de fila | B3: Suma de RET | C3: Suma de Neto
A4: Abogado | B4: 46000 | C4: 2284000
A5: Estudiante | B5: 9000 | C5: 2041000
A6: Ingeniero | B6: 33333.33333 | C6: 3350000
A7: Medico | B7: 106000 | C7: 5234000
A8: (en blanco) | C8: 0
A9: Total general | C9: 12909000

Sheet AMIGOS
A1: CODIGO | B1: NOMBRES | C1: APELLIDOS | D1: NOMAPE | E1: CIUDAD | F1: Columna1 | G1: DEPARTAMENTIO | H1: AuxT | I1: NomApeCiud | J1: PROFESION | K1: CARGO | L1: GENERO | M1: NomGenero | N1: Bonif | O1: ESTADO CIVIL | P1: IBCO | Q1: DT | R1: SueldoMes | S1: RET | T1: Neto
A2: 100 | B2: Juan | C2: Perez Prado | D2: =CONCATENATE(TblAmigos[[#This Row],[NOMBRES]]," ",TblAmigos[[#This Row],[APELLIDOS]]) -> Juan Perez Prado | E2: Dosquebradas | F2: =IF(TblAmigos[[#This Row],[CIUDAD]]="","",VLOOKUP(TblAmigos[[#This Row],[CIUDAD]],RangoCiudadyDepto,2,FALSE)) -> Risaralda | G2: =IF(TblAmigos[[#This Row],[CIUDAD]]="","",VLOOKUP(TblAmigos[[#This Row],[CIUDAD]],RangoCiudadyDepto,2,FALSE)) -> Risaralda | H2: =IF(TblAmigos[[#This Row],[CIUDAD]]="Pereira",0,IF(TblAmigos[[#This Row],[CIUDAD]]="Armenia",50000,IF(TblAmigos[[#This Row],[CIUDAD]]="","",30000))) -> 30000 | I2: =IF(TblAmigos[[#This Row],[NOMBRES]]="","",CONCATENATE(TblAmigos[[#This Row],[NOMBRES]]," ",TblAmigos[[#This Row],[APELLIDOS]]," (",TblAmigos[[#This Row],[CIUDAD]],")")) -> Juan Perez Prado (Dosquebradas) | J2: Medico | K2: Gerente | L2: F | M2: =IF(TblAmigos[[#This Row],[GENERO]]="M","Masculino",IF(TblAmigos[[#This Row],[GENERO]]="F","Femenino",IF(TblAmigos[[#This Row],[GENERO]]="","","NO VALIDO"))) -> Femenino | N2: =IF(TblAmigos[[#This Row],[GENERO]]="F",IF(TblAmigos[[#This Row],[CIUDAD]]="PEREIRA",30000,10000),0) -> 10000 | O2: SOLTERO(A) | P2: =IF(TblAmigos[[#This Row],[CARGO]]="","",VLOOKUP(TblAmigos[[#This Row],[CARGO]],RangoCargosySueldo,2,FALSE)) -> 3000000 | Q2: 30 | R2: =(TblAmigos[[#This Row],[IBCO]]/30)*TblAmigos[[#This Row],[DT]] -> 3000000 | S2: =IF(TblAmigos[[#This Row],[SueldoMes]] <= 800000,0,IF(TblAmigos[[#This Row],[SueldoMes]]<=2000000,TblAmigos[[#This Row],[SueldoMes]]*1%,TblAmigos[[#This Row],[SueldoMes]]*2%)) -> 60000 | T2: =IF(TblAmigos[[#This Row],[NOMBRES]]="","",(TblAmigos[[#This Row],[AuxT]]+TblAmigos[[#This Row],[Bonif]]+TblAmigos[[#This Row],[SueldoMes]]-TblAmigos[[#This Row],[RET]])) -> 2980000
A3: 101 | B3: Adriana | C3: Cardona Orozco | D3: =CONCATENATE(TblAmigos[[#This Row],[NOMBRES]]," ",TblAmigos[[#This Row],[APELLIDOS]]) -> Adriana Cardona Orozco | E3: Dosquebradas | F3: =IF(TblAmigos[[#This Row],[CIUDAD]]="","",VLOOKUP(TblAmigos[[#This Row],[CIUDAD]],RangoCiudadyDepto,2,FALSE)) -> Risaralda | G3: =IF(TblAmigos[[#This Row],[CIUDAD]]="","",VLOOKUP(TblAmigos[[#This Row],[CIUDAD]],RangoCiudadyDepto,2,FALSE)) -> Risaralda | H3: =IF(TblAmigos[[#This Row],[CIUDAD]]="Pereira",0,IF(TblAmigos[[#This Row],[CIUDAD]]="Armenia",50000,IF(TblAmigos[[#This Row],[CIUDAD]]="","",30000))) -> 30000 | I3: =IF(TblAmigos[[#This Row],[NOMBRES]]="","",CONCATENATE(TblAmigos[[#This Row],[NOMBRES]]," ",TblAmigos[[#This Row],[APELLIDOS]]," (",TblAmigos[[#This Row],[CIUDAD]],")")) -> Adriana Cardona Orozco (Dosquebradas) | J3: Estudiante | K3: Auxiliar Admin | L3: M | M3: =IF(TblAmigos[[#This Row],[GENERO]]="M","Masculino",IF(TblAmigos[[#This Row],[GENERO]]="F","Femenino",IF(TblAmigos[[#This Row],[GENERO]]="","","NO VALIDO"))) -> Masculino | N3: =IF(TblAmigos[[#This Row],[GENERO]]="F",IF(TblAmigos[[#This Row],[CIUDAD]]="PEREIRA",30000,10000),0) -> 0 | O3: CASADO(A) | P3: =IF(TblAmigos[[#This Row],[CARGO]]="","",VLOOKUP(TblAmigos[[#This Row],[CARGO]],RangoCargosySueldo,2,FALSE)) -> 900000 | Q3: 15 | R3: =(TblAmigos[[#This Row],[IBCO]]/30)*TblAmigos[[#This Row],[DT]] -> 450000 | S3: =IF(TblAmigos[[#This Row],[SueldoMes]] <= 800000,0,IF(TblAmigos[[#This Row],[SueldoMes]]<=2000000,TblAmigos[[#This Row],[SueldoMes]]*1%,TblAmigos[[#This Row],[SueldoMes]]*2%)) -> 0 | T3: =IF(TblAmigos[[#This Row],[NOMBRES]]="","",(TblAmigos[[#This Row],[AuxT]]+TblAmigos[[#This Row],[Bonif]]+TblAmigos[[#This Row],[SueldoMes]]-TblAmigos[[#This Row],[RET]])) -> 480000
A4: 102 | B4: Alvaro Andres | C4: Linares Lopez | D4: =CONCATENATE(TblAmigos[[#This Row],[NOMBRES]]," ",TblAmigos[[#This Row],[APELLIDOS]]) -> Alvaro Andres Linares Lopez | E4: Cartago | F4: =IF(TblAmigos[[#This Row],[CIUDAD]]="","",VLOOKUP(TblAmigos[[#This Row],[CIUDAD]],RangoCiudadyDepto,2,FALSE)) -> Valle | G4: =IF(TblAmigos[[#This Row],[CIUDAD]]="","",VLOOKUP(TblAmigos[[#This Row],[CIUDAD]],RangoCiudadyDepto,2,FALSE)) -> Valle | H4: =IF(TblAmigos[[#This Row],[CIUDAD]]="Pereira",0,IF(TblAmigos[[#This Row],[CIUDAD]]="Armenia",50000,IF(TblAmigos[[#This Row],[CIUDAD]]="","",30000))) -> 30000 | I4: =IF(TblAmigos[[#This Row],[NOMBRES]]="","",CONCATENATE(TblAmigos[[#This Row],[NOMBRES]]," ",TblAmigos[[#This Row],[APELLIDOS]]," (",TblAmigos[[#This Row],[CIUDAD]],")")) -> Alvaro Andres Linares Lopez (Cartago) | J4: Estudiante | K4: Auxiliar Admin | L4: F | M4: =IF(TblAmigos[[#This Row],[GENERO]]="M","Masculino",IF(TblAmigos[[#This Row],[GENERO]]="F","Femenino",IF(TblAmigos[[#This Row],[GENERO]]="","","NO VALIDO"))) -> Femenino | N4: =IF(TblAmigos[[#This Row],[GENERO]]="F",IF(TblAmigos[[#This Row],[CIUDAD]]="PEREIRA",30000,10000),0) -> 10000 | O4: VIUDO() | P4: =IF(TblAmigos[[#This Row],[CARGO]]="","",VLOOKUP(TblAmigos[[#This Row],[CARGO]],RangoCargosySueldo,2,FALSE)) -> 900000 | Q4: 30 | R4: =(TblAmigos[[#This Row],[IBCO]]/30)*TblAmigos[[#This Row],[DT]] -> 900000 | S4: =IF(TblAmigos[[#This Row],[SueldoMes]] <= 800000,0,IF(TblAmigos[[#This Row],[SueldoMes]]<=2000000,TblAmigos[[#This Row],[SueldoMes]]*1%,TblAmigos[[#This Row],[SueldoMes]]*2%)) -> 9000 | T4: =IF(TblAmigos[[#This Row],[NOMBRES]]="","",(TblAmigos[[#This Row],[AuxT]]+TblAmigos[[#This Row],[Bonif]]+TblAmigos[[#This Row],[SueldoMes]]-TblAmigos[[#This Row],[RET]])) -> 931000
A5: 103 | B5: Carlos Alberto | C5: Arias | D5: =CONCATENATE(TblAmigos[[#This Row],[NOMBRES]]," ",TblAmigos[[#This Row],[APELLIDOS]]) -> Carlos Alberto Arias | E5: Pereira | F5: =IF(TblAmigos[[#This Row],[CIUDAD]]="","",VLOOKUP(TblAmigos[[#This Row],[CIUDAD]],RangoCiudadyDepto,2,FALSE)) -> Risaralda | G5: =IF(TblAmigos[[#This Row],[CIUDAD]]="","",VLOOKUP(TblAmigos[[#This Row],[CIUDAD]],RangoCiudadyDepto,2,FALSE)) -> Risaralda | H5: =IF(TblAmigos[[#This Row],[CIUDAD]]="Pereira",0,IF(TblAmigos[[#This Row],[CIUDAD]]="Armenia",50000,IF(TblAmigos[[#This Row],[CIUDAD]]="","",30000))) -> 0 | I5: =IF(TblAmigos[[#This Row],[NOMBRES]]="","",CONCATENATE(TblAmigos[[#This Row],[NOMBRES]]," ",TblAmigos[[#This Row],[APELLIDOS]]," (",TblAmigos[[#This Row],[CIUDAD]],")")) -> Carlos Alberto Arias (Pereira) | J5: Medico | K5: Jefe de Division | L5: M | M5: =IF(TblAmigos[[#This Row],[GENERO]]="M","Masculino",IF(TblAmigos[[#This Row],[GENERO]]="F","Femenino",IF(TblAmigos[[#This Row],[GENERO]]="","","NO VALIDO"))) -> Masculino | N5: =IF(TblAmigos[[#This Row],[GENERO]]="F",IF(TblAmigos[[#This Row],[CIUDAD]]="PEREIRA",30000,10000),0) -> 0 | O5: SOLTERO(A) | P5: =IF(TblAmigos[[#This Row],[CARGO]]="","",VLOOKUP(TblAmigos[[#This Row],[CARGO]],RangoCargosySueldo,2,FALSE)) -> 2300000 | Q5: 30 | R5: =(TblAmigos[[#This Row],[IBCO]]/30)*TblAmigos[[#This Row],[DT]] -> 2300000 | S5: =IF(TblAmigos[[#This Row],[SueldoMes]] <= 800000,0,IF(TblAmigos[[#This Row],[SueldoMes]]<=2000000,TblAmigos[[#This Row],[SueldoMes]]*1%,TblAmigos[[#This Row],[SueldoMes]]*2%)) -> 46000 | T5: =IF(TblAmigos[[#This Row],[NOMBRES]]="","",(TblAmigos[[#This Row],[AuxT]]+TblAmigos[[#This Row],[Bonif]]+TblAmigos[[#This Row],[SueldoMes]]-TblAmigos[[#This Row],[RET]])) -> 2254000
A6: 104 | B6: Juan Miguel | C6: Diaz Parra | D6: =CONCATENATE(TblAmigos[[#This Row],[NOMBRES]]," ",TblAmigos[[#This Row],[APELLIDOS]]) -> Juan Miguel Diaz Parra | E6: Pereira | F6: =IF(TblAmigos[[#This Row],[CIUDAD]]="","",VLOOKUP(TblAmigos[[#This Row],[CIUDAD]],RangoCiudadyDepto,2,FALSE)) -> Risaralda | G6: =IF(TblAmigos[[#This Row],[CIUDAD]]="","",VLOOKUP(TblAmigos[[#This Row],[CIUDAD]],RangoCiudadyDepto,2,FALSE)) -> Risaralda | H6: =IF(TblAmigos[[#This Row],[CIUDAD]]="Pereira",0,IF(TblAmigos[[#This Row],[CIUDAD]]="Armenia",50000,IF(TblAmigos[[#This Row],[CIUDAD]]="","",30000))) -> 0 | I6: =IF(TblAmigos[[#This Row],[NOMBRES]]="","",CONCATENATE(TblAmigos[[#This Row],[NOMBRES]]," ",TblAmigos[[#This Row],[APELLIDOS]]," (",TblAmigos[[#This Row],[CIUDAD]],")")) -> Juan Miguel Diaz Parra (Pereira) | J6: Ingeniero | K6: Coordinador | L6: M | M6: =IF(TblAmigos[[#This Row],[GENERO]]="M","Masculino",IF(TblAmigos[[#This Row],[GENERO]]="F","Femenino",IF(TblAmigos[[#This Row],[GENERO]]="","","NO VALIDO"))) -> Masculino | N6: =IF(TblAmigos[[#This Row],[GENERO]]="F",IF(TblAmigos[[#This Row],[CIUDAD]]="PEREIRA",30000,10000),0) -> 0 | O6: SOLTERO(A) | P6: =IF(TblAmigos[[#This Row],[CARGO]]="","",VLOOKUP(TblAmigos[[#This Row],[CARGO]],RangoCargosySueldo,2,FALSE)) -> 2000000 | Q6: 20 | R6: =(TblAmigos[[#This Row],[IBCO]]/30)*TblAmigos[[#This Row],[DT]] -> 1333333.333 | S6: =IF(TblAmigos[[#This Row],[SueldoMes]] <= 800000,0,IF(TblAmigos[[#This Row],[SueldoMes]]<=2000000,TblAmigos[[#This Row],[SueldoMes]]*1%,TblAmigos[[#This Row],[SueldoMes]]*2%)) -> 13333.33333 | T6: =IF(TblAmigos[[#This Row],[NOMBRES]]="","",(TblAmigos[[#This Row],[AuxT]]+TblAmigos[[#This Row],[Bonif]]+TblAmigos[[#This Row],[SueldoMes]]-TblAmigos[[#This Row],[RET]])) -> 1320000
A7: 105 | B7: Oscar | C7: Gutierrez Laverde | D7: =CONCATENATE(TblAmigos[[#This Row],[NOMBRES]]," ",TblAmigos[[#This Row],[APELLIDOS]]) -> Oscar Gutierrez Laverde | E7: Armenia | F7: =IF(TblAmigos[[#This Row],[CIUDAD]]="","",VLOOKUP(TblAmigos[[#This Row],[CIUDAD]],RangoCiudadyDepto,2,FALSE)) -> Quindio | G7: =IF(TblAmigos[[#This Row],[CIUDAD]]="","",VLOOKUP(TblAmigos[[#This Row],[CIUDAD]],RangoCiudadyDepto,2,FALSE)) -> Quindio | H7: =IF(TblAmigos[[#This Row],[CIUDAD]]="Pereira",0,IF(TblAmigos[[#This Row],[CIUDAD]]="Armenia",50000,IF(TblAmigos[[#This Row],[CIUDAD]]="","",30000))) -> 50000 | I7: =IF(TblAmigos[[#This Row],[NOMBRES]]="","",CONCATENATE(TblAmigos[[#This Row],[NOMBRES]]," ",TblAmigos[[#This Row],[APELLIDOS]]," (",TblAmigos[[#This Row],[CIUDAD]],")")) -> Oscar Gutierrez Laverde (Armenia) | J7: Ingeniero | K7: Coordinador | L7: M | M7: =IF(TblAmigos[[#This Row],[GENERO]]="M","Masculino",IF(TblAmigos[[#This Row],[GENERO]]="F","Femenino",IF(TblAmigos[[#This Row],[GENERO]]="","","NO VALIDO"))) -> Masculino | N7: =IF(TblAmigos[[#This Row],[GENERO]]="F",IF(TblAmigos[[#This Row],[CIUDAD]]="PEREIRA",30000,10000),0) -> 0 | O7: Soltero(a) | P7: =IF(TblAmigos[[#This Row],[CARGO]]="","",VLOOKUP(TblAmigos[[#This Row],[CARGO]],RangoCargosySueldo,2,FALSE)) -> 2000000 | Q7: 30 | R7: =(TblAmigos[[#This Row],[IBCO]]/30)*TblAmigos[[#This Row],[DT]] -> 2000000 | S7: =IF(TblAmigos[[#This Row],[SueldoMes]] <= 800000,0,IF(TblAmigos[[#This Row],[SueldoMes]]<=2000000,TblAmigos[[#This Row],[SueldoMes]]*1%,TblAmigos[[#This Row],[SueldoMes]]*2%)) -> 20000 | T7: =IF(TblAmigos[[#This Row],[NOMBRES]]="","",(TblAmigos[[#This Row],[AuxT]]+TblAmigos[[#This Row],[Bonif]]+TblAmigos[[#This Row],[SueldoMes]]-TblAmigos[[#This Row],[RET]])) -> 2030000
A8: 106 | B8: Nancy | C8: Pulgarin Morales | D8: =CONCATENATE(TblAmigos[[#This Row],[NOMBRES]]," ",TblAmigos[[#This Row],[APELLIDOS]]) -> Nancy Pulgarin Morales | E8: Pereira | F8: =IF(TblAmigos[[#This Row],[CIUDAD]]="","",VLOOKUP(TblAmigos[[#This Row],[CIUDAD]],RangoCiudadyDepto,2,FALSE)) -> Risaralda | G8: =IF(TblAmigos[[#This Row],[CIUDAD]]="","",VLOOKUP(TblAmigos[[#This Row],[CIUDAD]],RangoCiudadyDepto,2,FALSE)) -> Risaralda | H8: =IF(TblAmigos[[#This Row],[CIUDAD]]="Pereira",0,IF(TblAmigos[[#This Row],[CIUDAD]]="Armenia",50000,IF(TblAmigos[[#This Row],[CIUDAD]]="","",30000))) -> 0 | I8: =IF(TblAmigos[[#This Row],[NOMBRES]]="","",CONCATENATE(TblAmigos[[#This Row],[NOMBRES]]," ",TblAmigos[[#This Row],[APELLIDOS]]," (",TblAmigos[[#This Row],[CIUDAD]],")")) -> Nancy Pulgarin Morales (Pereira) | J8: Estudiante | K8: Auxiliar Admin | L8: F | M8: =IF(TblAmigos[[#This Row],[GENERO]]="M","Masculino",IF(TblAmigos[[#This Row],[GENERO]]="F","Femenino",IF(TblAmigos[[#This Row],[GENERO]]="","","NO VALIDO"))) -> Femenino | N8: =IF(TblAmigos[[#This Row],[GENERO]]="F",IF(TblAmigos[[#This Row],[CIUDAD]]="PEREIRA",30000,10000),0) -> 30000 | O8: Soltero(a) | P8: =IF(TblAmigos[[#This Row],[CARGO]]="","",VLOOKUP(TblAmigos[[#This Row],[CARGO]],RangoCargosySueldo,2,FALSE)) -> 900000 | Q8: 20 | R8: =(TblAmigos[[#This Row],[IBCO]]/30)*TblAmigos[[#This Row],[DT]] -> 600000 | S8: =IF(TblAmigos[[#This Row],[SueldoMes]] <= 800000,0,IF(TblAmigos[[#This Row],[SueldoMes]]<=2000000,TblAmigos[[#This Row],[SueldoMes]]*1%,TblAmigos[[#This Row],[SueldoMes]]*2%)) -> 0 | T8: =IF(TblAmigos[[#This Row],[NOMBRES]]="","",(TblAmigos[[#This Row],[AuxT]]+TblAmigos[[#This Row],[Bonif]]+TblAmigos[[#This Row],[SueldoMes]]-TblAmigos[[#This Row],[RET]])) -> 630000
A9: 107 | B9: Orlando | C9: Jimenez | D9: =CONCATENATE(TblAmigos[[#This Row],[NOMBRES]]," ",TblAmigos[[#This Row],[APELLIDOS]]) -> Orlando Jimenez | E9: Cali | F9: =IF(TblAmigos[[#This Row],[CIUDAD]]="","",VLOOKUP(TblAmigos[[#This Row],[CIUDAD]],RangoCiudadyDepto,2,FALSE)) -> Valle | G9: =IF(TblAmigos[[#This Row],[CIUDAD]]="","",VLOOKUP(TblAmigos[[#This Row],[CIUDAD]],RangoCiudadyDepto,2,FALSE)) -> Valle | H9: =IF(TblAmigos[[#This Row],[CIUDAD]]="Pereira",0,IF(TblAmigos[[#This Row],[CIUDAD]]="Armenia",50000,IF(TblAmigos[[#This Row],[CIUDAD]]="","",30000))) -> 30000 | I9: =IF(TblAmigos[[#This Row],[NOMBRES]]="","",CONCATENATE(TblAmigos[[#This Row],[NOMBRES]]," ",TblAmigos[[#This Row],[APELLIDOS]]," (",TblAmigos[[#This Row],[CIUDAD]],")")) -> Orlando Jimenez (Cali) | J9: Abogado | K9: Jefe de Division | L9: m | M9: =IF(TblAmigos[[#This Row],[GENERO]]="M","Masculino",IF(TblAmigos[[#This Row],[GENERO]]="F","Femenino",IF(TblAmigos[[#This Row],[GENERO]]="","","NO VALIDO"))) -> Masculino | N9: =IF(TblAmigos[[#This Row],[GENERO]]="F",IF(TblAmigos[[#This Row],[CIUDAD]]="PEREIRA",30000,10000),0) -> 0 | O9: CASADO(A) | P9: =IF(TblAmigos[[#This Row],[CARGO]]="","",VLOOKUP(TblAmigos[[#This Row],[CARGO]],RangoCargosySueldo,2,FALSE)) -> 2300000 | Q9: 30 | R9: =(TblAmigos[[#This Row],[IBCO]]/30)*TblAmigos[[#This Row],[DT]] -> 2300000 | S9: =IF(TblAmigos[[#This Row],[SueldoMes]] <= 800000,0,IF(TblAmigos[[#This Row],[SueldoMes]]<=2000000,TblAmigos[[#This Row],[SueldoMes]]*1%,TblAmigos[[#This Row],[SueldoMes]]*2%)) -> 46000 | T9: =IF(TblAmigos[[#This Row],[NOMBRES]]="","",(TblAmigos[[#This Row],[AuxT]]+TblAmigos[[#This Row],[Bonif]]+TblAmigos[[#This Row],[SueldoMes]]-TblAmigos[[#This Row],[RET]])) -> 2284000
A10: 108 | D10: =CONCATENATE(TblAmigos[[#This Row],[NOMBRES]]," ",TblAmigos[[#This Row],[APELLIDOS]]) ->  | F10: =IF(TblAmigos[[#This Row],[CIUDAD]]="","",VLOOKUP(TblAmigos[[#This Row],[CIUDAD]],RangoCiudadyDepto,2,FALSE)) ->  | G10: =IF(TblAmigos[[#This Row],[CIUDAD]]="","",VLOOKUP(TblAmigos[[#This Row],[CIUDAD]],RangoCiudadyDepto,2,FALSE)) ->  | H10: =IF(TblAmigos[[#This Row],[CIUDAD]]="Pereira",0,IF(TblAmigos[[#This Row],[CIUDAD]]="Armenia",50000,IF(TblAmigos[[#This Row],[CIUDAD]]="","",30000))) ->  | I10: =IF(TblAmigos[[#This Row],[NOMBRES]]="","",CONCATENATE(TblAmigos[[#This Row],[NOMBRES]]," ",TblAmigos[[#This Row],[APELLIDOS]]," (",TblAmigos[[#This Row],[CIUDAD]],")")) ->  | M10: =IF(TblAmigos[[#This Row],[GENERO]]="M","Masculino",IF(TblAmigos[[#This Row],[GENERO]]="F","Femenino",IF(TblAmigos[[#This Row],[GENERO]]="","","NO VALIDO"))) ->  | N10: =IF(TblAmigos[[#This Row],[GENERO]]="F",IF(TblAmigos[[#This Row],[CIUDAD]]="PEREIRA",30000,10000),0) -> 0 | P10: =IF(TblAmigos[[#This Row],[CARGO]]="","",VLOOKUP(TblAmigos[[#This Row],[CARGO]],RangoCargosySueldo,2,FALSE)) ->  | R10: =(TblAmigos[[#This Row],[IBCO]]/30)*TblAmigos[[#This Row],[DT]] ->  | S10: =IF(TblAmigos[[#This Row],[SueldoMes]] <= 800000,0,IF(TblAmigos[[#This Row],[SueldoMes]]<=2000000,TblAmigos[[#This Row],[SueldoMes]]*1%,TblAmigos[[#This Row],[SueldoMes]]*2%)) ->  | T10: =IF(TblAmigos[[#This Row],[NOMBRES]]="","",(TblAmigos[[#This Row],[AuxT]]+TblAmigos[[#This Row],[Bonif]]+TblAmigos[[#This Row],[SueldoMes]]-TblAmigos[[#This Row],[RET]])) -> 
D25: REGLAS DEL NEGOCIO
D26: SI ES MUJER TIENE BONIFICACION DE 10,000 PERO SI ES MUJER DE PEREIRA TIENE BONIF DE 30000
D27: CALCULAR RETENCION SEGÚN TABLA
D28: SUELDO MES | E28: RET %
D29: 0 - 800.000 | E29: 0
D30: 800.0001 - 2.000.000 | E30: 0.01
D31: MAYOR A 2.000.0001 | E31: 0.02
D33: TIENE AUXILIO DE TRANSPORTE IGUAL A 50.000 SI LA PERSONA ES DE ARMENIA
D34: SI ES DE PEREIRA NO TIENE AUX DE TRANSPORTE, SI LACIUDAD NO ES ARMENIA TIENE 30.000 DE AUX TRANSP

Sheet Tablas
A1: Ciudades | B1: Departamentos | D1: Ocupacion | E1: Cargo | F1: Sueldo | G1: EstadoCivil
A2: Pereira | B2: Risaralda | D2: Abogado | E2: Secretaria | F2: 700000 | G2: Estado Civil
A3: Armenia | B3: Quindio | D3: Medico | E3: Gerente | F3: 3000000 | G3: Soltero(a)
A4: Manizales | B4: Caldas | D4: Ingeniero | E4: Coordinador | F4: 2000000 | G4: Casado(a)
A5: Cartago | B5: Valle | D5: Estudiante | E5: Auxiliar Admin | F5: 900000 | G5: Viudo(a)
A6: Dosquebradas | B6: Risaralda | D6: Ama de casa | E6: Jefe de Division | F6: 2300000 | G6: Divorciado
A7: Cali | B7: Valle | G7: Union Libre

Sheet Hoja3
